[Event "*** Titled Tuesday Blitz"]
[Site "Chess.com"]
[Date "2020.04.14"]
[Round "3"]
[White "adricalderon8"]
[Black "BogdanDeac"]
[Result "0-1"]
[WhiteElo "2441"]
[BlackElo "2727"]
[TimeControl "180+1"]
[EndTime "10:28:21 PDT"]
[Termination "BogdanDeac won by resignation"]

1. e4 {[%clk 0:03:00.9]} 1... c5 {[%clk 0:02:59.5]} 2. Nf3 {[%clk 0:03:00.5]}
2... Nc6 {[%clk 0:02:59.1]} 3. d4 {[%clk 0:03:00.7]} 3... cxd4 {[%clk
0:02:58.2]} 4. Nxd4 {[%clk 0:03:01.6]} 4... Nf6 {[%clk 0:02:58.7]} 5. Nc3 {[%clk
0:03:01.4]} 5... e5 {[%clk 0:02:58.9]} 6. Ndb5 {[%clk 0:03:01.6]} 6... d6 {[%clk
0:02:59]} 7. Bg5 {[%clk 0:03:01.5]} 7... a6 {[%clk 0:02:58.6]} 8. Na3 {[%clk
0:03:02.2]} 8... b5 {[%clk 0:02:58.4]} 9. Bxf6 {[%clk 0:03:02.5]} 9... gxf6
{[%clk 0:02:58.1]} 10. Nd5 {[%clk 0:03:03.4]} 10... f5 {[%clk 0:02:58.4]} 11.
Bd3 {[%clk 0:03:02.7]} 11... Be6 {[%clk 0:02:58.4]} 12. c3 {[%clk 0:03:01.2]}
12... Bg7 {[%clk 0:02:56.7]} 13. Nxb5 {[%clk 0:03:00.9]} 13... axb5 {[%clk
0:02:54.7]} 14. Bxb5 {[%clk 0:03:01.8]} 14... Rc8 {[%clk 0:02:53.8]} 15. Qa4
{[%clk 0:03:01.1]} 15... Bd7 {[%clk 0:02:53.3]} 16. exf5 {[%clk 0:03:01.8]}
16... O-O {[%clk 0:02:52.4]} 17. O-O {[%clk 0:03:01.5]} 17... e4 {[%clk
0:02:51.4]} 18. Qxe4 {[%clk 0:02:57.4]} 18... Re8 {[%clk 0:02:50.8]} 19. Qg4
{[%clk 0:02:54.2]} 19... Ne5 {[%clk 0:02:43.6]} 20. Qa4 {[%clk 0:02:31.5]} 20...
Ra8 {[%clk 0:01:43.8]} 21. Qb3 {[%clk 0:02:00.5]} 21... Rb8 {[%clk 0:01:41.8]}
22. a4 {[%clk 0:01:59]} 22... Bxf5 {[%clk 0:01:40]} 23. Qd1 {[%clk 0:01:40]}
23... Bd7 {[%clk 0:01:22]} 24. Bxd7 {[%clk 0:01:27.6]} 24... Nxd7 {[%clk
0:01:19.4]} 25. b4 {[%clk 0:01:26]} 25... Nb6 {[%clk 0:01:07.4]} 26. Nxb6 {[%clk
0:01:24.4]} 26... Qxb6 {[%clk 0:01:06.3]} 27. Qd3 {[%clk 0:01:20.4]} 27... Qc6
{[%clk 0:00:54]} 28. Ra3 {[%clk 0:01:16.1]} 28... Rec8 {[%clk 0:00:52.6]} 29. h3
{[%clk 0:00:50.8]} 29... d5 {[%clk 0:00:39.3]} 30. Qg3 {[%clk 0:00:30.2]} 30...
Qg6 {[%clk 0:00:26.5]} 31. Qxg6 {[%clk 0:00:26.8]} 31... hxg6 {[%clk 0:00:25.6]}
32. Rd1 {[%clk 0:00:15.3]} 32... Bxc3 {[%clk 0:00:20.6]} 33. Rxd5 {[%clk
0:00:14.9]} 33... Bxb4 {[%clk 0:00:17.1]} 34. Rad3 {[%clk 0:00:14.1]} 34... Ra8
{[%clk 0:00:15.2]} 35. g3 {[%clk 0:00:08.6]} 35... Rxa4 {[%clk 0:00:14.4]} 36.
Rd8+ {[%clk 0:00:08.6]} 36... Rxd8 {[%clk 0:00:14.1]} 37. Rxd8+ {[%clk
0:00:09.3]} 37... Bf8 {[%clk 0:00:14.6]} 38. Rd4 {[%clk 0:00:10]} 38... Rxd4
{[%clk 0:00:13.1]} 0-1

[Event "*** Titled Tuesday Blitz"]
[Site "Chess.com"]
[Date "2020.04.14"]
[Round "3"]
[White "1977Ivan"]
[Black "MasterKroket"]
[Result "1-0"]
[WhiteElo "2704"]
[BlackElo "2432"]
[TimeControl "180+1"]
[EndTime "10:28:23 PDT"]
[Termination "1977Ivan won by checkmate"]

1. c4 {[%clk 0:02:54]} 1... e6 {[%clk 0:02:59.9]} 2. Nc3 {[%clk 0:02:53.1]} 2...
Nf6 {[%clk 0:02:59.7]} 3. e4 {[%clk 0:02:51.8]} 3... d5 {[%clk 0:02:59.6]} 4. e5
{[%clk 0:02:51.9]} 4... d4 {[%clk 0:02:59.4]} 5. exf6 {[%clk 0:02:35.7]} 5...
dxc3 {[%clk 0:02:59.1]} 6. bxc3 {[%clk 0:02:34.4]} 6... Qxf6 {[%clk 0:02:58.9]}
7. d4 {[%clk 0:02:34.5]} 7... e5 {[%clk 0:02:55]} 8. Nf3 {[%clk 0:02:33.7]} 8...
exd4 {[%clk 0:02:54.6]} 9. Bg5 {[%clk 0:02:19.8]} 9... Qe6+ {[%clk 0:02:54.6]}
10. Be2 {[%clk 0:02:19.6]} 10... h6 {[%clk 0:02:41.7]} 11. Nxd4 {[%clk
0:02:14.3]} 11... Qd7 {[%clk 0:02:21.5]} 12. Bh4 {[%clk 0:02:03.6]} 12... Be7
{[%clk 0:02:20.4]} 13. Bg3 {[%clk 0:02:00.1]} 13... O-O {[%clk 0:02:07.8]} 14.
O-O {[%clk 0:02:00.6]} 14... Bd6 {[%clk 0:01:58.4]} 15. Rb1 {[%clk 0:01:46.6]}
15... Bxg3 {[%clk 0:01:55.5]} 16. hxg3 {[%clk 0:01:47]} 16... Na6 {[%clk
0:01:52.1]} 17. Bf3 {[%clk 0:01:45.1]} 17... c6 {[%clk 0:01:48.2]} 18. Qc1
{[%clk 0:01:31.4]} 18... Qe7 {[%clk 0:01:40.8]} 19. Re1 {[%clk 0:01:26]} 19...
Qg5 {[%clk 0:01:38]} 20. Qa3 {[%clk 0:01:24.1]} 20... Qc5 {[%clk 0:01:32.2]} 21.
Qxc5 {[%clk 0:00:59.6]} 21... Nxc5 {[%clk 0:01:33.1]} 22. Re7 {[%clk 0:00:59.6]}
22... Be6 {[%clk 0:01:21.2]} 23. Nb3 {[%clk 0:00:47.6]} 23... Na4 {[%clk
0:01:10.9]} 24. Na5 {[%clk 0:00:45.7]} 24... Nxc3 {[%clk 0:00:55.4]} 25. Rbxb7
{[%clk 0:00:44.2]} 25... Rad8 {[%clk 0:00:52.3]} 26. Nxc6 {[%clk 0:00:43.1]}
26... Rd2 {[%clk 0:00:52.4]} 27. Rxa7 {[%clk 0:00:40.2]} 27... Bxc4 {[%clk
0:00:46.6]} 28. a4 {[%clk 0:00:38.4]} 28... Ra2 {[%clk 0:00:43.5]} 29. a5 {[%clk
0:00:38]} 29... Bb5 {[%clk 0:00:34.1]} 30. Ne5 {[%clk 0:00:35.9]} 30... Nb1
{[%clk 0:00:16.2]} 31. Nxf7 {[%clk 0:00:30.2]} 31... Rc8 {[%clk 0:00:06.8]} 32.
Ne5 {[%clk 0:00:16.8]} 32... Rc1+ {[%clk 0:00:06.7]} 33. Kh2 {[%clk 0:00:16.3]}
33... Nd2 {[%clk 0:00:04.2]} 34. Bd5+ {[%clk 0:00:15.2]} 34... Kf8 {[%clk
0:00:04]} 35. Rf7+ {[%clk 0:00:13.7]} 35... Kg8 {[%clk 0:00:02.1]} 36. Rxg7+
{[%clk 0:00:13.2]} 36... Kf8 {[%clk 0:00:02.5]} 37. Rg8# {[%clk 0:00:13.3]} 1-0

[Event "*** Titled Tuesday Blitz"]
[Site "Chess.com"]
[Date "2020.04.14"]
[Round "3"]
[White "GelmanAlexander"]
[Black "Arjun2002"]
[Result "1-0"]
[WhiteElo "2432"]
[BlackElo "2644"]
[TimeControl "180+1"]
[EndTime "10:28:23 PDT"]
[Termination "GelmanAlexander won by checkmate"]

1. c4 {[%clk 0:03:00.9]} 1... c6 {[%clk 0:02:57.3]} 2. Nf3 {[%clk 0:03:00.5]}
2... d5 {[%clk 0:02:57.4]} 3. b3 {[%clk 0:03:01.2]} 3... Nf6 {[%clk 0:02:56.7]}
4. Bb2 {[%clk 0:03:01.8]} 4... Bg4 {[%clk 0:02:57]} 5. e3 {[%clk 0:03:01.4]}
5... Nbd7 {[%clk 0:02:56.1]} 6. h3 {[%clk 0:03:02]} 6... Bh5 {[%clk 0:02:55.4]}
7. g4 {[%clk 0:03:01.4]} 7... Bg6 {[%clk 0:02:55.5]} 8. d3 {[%clk 0:02:59.8]}
8... e6 {[%clk 0:02:48.9]} 9. Rg1 {[%clk 0:02:52.5]} 9... a5 {[%clk 0:02:41.3]}
10. a3 {[%clk 0:02:48.4]} 10... b5 {[%clk 0:02:37.9]} 11. cxb5 {[%clk
0:02:20.2]} 11... cxb5 {[%clk 0:02:36.6]} 12. Nbd2 {[%clk 0:02:11.4]} 12... Qb6
{[%clk 0:02:33.3]} 13. Rc1 {[%clk 0:01:55.2]} 13... Bc5 {[%clk 0:02:22.5]} 14.
h4 {[%clk 0:01:53.6]} 14... h5 {[%clk 0:02:21.8]} 15. g5 {[%clk 0:01:26.6]}
15... Ng4 {[%clk 0:02:20.5]} 16. Bxg7 {[%clk 0:01:26.7]} 16... Nxf2 {[%clk
0:02:10.4]} 17. Kxf2 {[%clk 0:01:16.3]} 17... Bxe3+ {[%clk 0:02:10.2]} 18. Kg2
{[%clk 0:01:15.5]} 18... Rg8 {[%clk 0:02:09.5]} 19. Bb2 {[%clk 0:01:06.7]} 19...
Bxg1 {[%clk 0:01:39.3]} 20. Nxg1 {[%clk 0:01:06.4]} 20... Qd6 {[%clk 0:01:27.2]}
21. Ndf3 {[%clk 0:00:47.2]} 21... Qf4 {[%clk 0:01:24]} 22. Nh3 {[%clk
0:00:39.3]} 22... Qg4+ {[%clk 0:01:22.9]} 23. Kh2 {[%clk 0:00:39.7]} 23... Bf5
{[%clk 0:01:15.4]} 24. Bg2 {[%clk 0:00:36.9]} 24... f6 {[%clk 0:01:08.1]} 25.
Qd2 {[%clk 0:00:29.9]} 25... fxg5 {[%clk 0:01:06.4]} 26. Nhxg5 {[%clk
0:00:28.5]} 26... Rxg5 {[%clk 0:00:30.6]} 27. Qxg5 {[%clk 0:00:26.8]} 27... Bxd3
{[%clk 0:00:21.9]} 28. Qh6 {[%clk 0:00:19.4]} 28... Ke7 {[%clk 0:00:16.2]} 29.
Rc7 {[%clk 0:00:16.5]} 29... Rg8 {[%clk 0:00:11.8]} 30. Rxd7+ {[%clk 0:00:11]}
30... Ke8 {[%clk 0:00:09]} 31. Qd2 {[%clk 0:00:11.9]} 31... Qg3+ {[%clk
0:00:08.7]} 32. Kh1 {[%clk 0:00:11.7]} 32... Kxd7 {[%clk 0:00:08.6]} 33. Be5
{[%clk 0:00:11.1]} 33... Qg6 {[%clk 0:00:07.5]} 34. Ng5 {[%clk 0:00:10.1]} 34...
Qf5 {[%clk 0:00:06.8]} 35. Qe3 {[%clk 0:00:09.4]} 35... Be4 {[%clk 0:00:06.4]}
36. Qa7+ {[%clk 0:00:09.4]} 36... Kc6 {[%clk 0:00:06.6]} 37. Qc7# {[%clk
0:00:09.4]} 1-0

[Event "*** Titled Tuesday Blitz"]
[Site "Chess.com"]
[Date "2020.04.14"]
[Round "3"]
[White "dusanacns"]
[Black "RitvarsReimanis"]
[Result "1/2-1/2"]
[WhiteElo "2782"]
[BlackElo "2588"]
[TimeControl "180+1"]
[EndTime "10:28:25 PDT"]
[Termination "Game drawn by repetition"]

1. e4 {[%clk 0:02:59.6]} 1... c5 {[%clk 0:02:59.9]} 2. Nf3 {[%clk 0:02:59.7]}
2... Nc6 {[%clk 0:03:00.4]} 3. Bb5 {[%clk 0:03:00]} 3... g6 {[%clk 0:03:00.7]}
4. Bxc6 {[%clk 0:03:00.2]} 4... dxc6 {[%clk 0:03:01.6]} 5. d3 {[%clk 0:03:00.8]}
5... Bg7 {[%clk 0:03:01.5]} 6. Nbd2 {[%clk 0:03:01.5]} 6... Nf6 {[%clk
0:02:59.3]} 7. a4 {[%clk 0:03:01.5]} 7... a5 {[%clk 0:02:58.1]} 8. Nc4 {[%clk
0:02:59.3]} 8... Nd7 {[%clk 0:02:55.2]} 9. c3 {[%clk 0:02:30.9]} 9... O-O {[%clk
0:02:41.6]} 10. h4 {[%clk 0:02:27.1]} 10... h6 {[%clk 0:02:40.4]} 11. Be3 {[%clk
0:02:06.7]} 11... b5 {[%clk 0:02:36.8]} 12. Ncd2 {[%clk 0:01:53.5]} 12... Ba6
{[%clk 0:02:11.3]} 13. Qc2 {[%clk 0:01:46]} 13... b4 {[%clk 0:02:07.8]} 14. cxb4
{[%clk 0:01:36]} 14... cxb4 {[%clk 0:02:06]} 15. Nc4 {[%clk 0:01:33.7]} 15... b3
{[%clk 0:01:44.6]} 16. Qe2 {[%clk 0:01:20.6]} 16... Bxc4 {[%clk 0:01:36]} 17.
dxc4 {[%clk 0:01:21.5]} 17... Nf6 {[%clk 0:01:36.5]} 18. Bd4 {[%clk 0:01:14.2]}
18... Nh5 {[%clk 0:01:21.4]} 19. Be3 {[%clk 0:00:47]} 19... Qd6 {[%clk
0:01:14.4]} 20. g3 {[%clk 0:00:35.2]} 20... Qb4+ {[%clk 0:01:10.7]} 21. Kf1
{[%clk 0:00:26.6]} 21... Nf6 {[%clk 0:00:57.8]} 22. Bd4 {[%clk 0:00:24.1]} 22...
Nh5 {[%clk 0:00:53.9]} 23. Bxg7 {[%clk 0:00:22.3]} 23... Nxg7 {[%clk 0:00:54.8]}
24. Kg2 {[%clk 0:00:20.9]} 24... Ne6 {[%clk 0:00:50.9]} 25. Rhc1 {[%clk
0:00:17.5]} 25... Rfd8 {[%clk 0:00:50.2]} 26. Rc3 {[%clk 0:00:17.1]} 26... Rab8
{[%clk 0:00:45.6]} 27. Ra3 {[%clk 0:00:16.6]} 27... Nc5 {[%clk 0:00:42.1]} 28.
Qe3 {[%clk 0:00:16.1]} 28... Kg7 {[%clk 0:00:41.1]} 29. h5 {[%clk 0:00:15.2]}
29... g5 {[%clk 0:00:28.2]} 30. Nxg5 {[%clk 0:00:15.6]} 30... hxg5 {[%clk
0:00:19.5]} 31. Qxg5+ {[%clk 0:00:16.5]} 31... Kh7 {[%clk 0:00:16.9]} 32. Rf3
{[%clk 0:00:14]} 32... Rf8 {[%clk 0:00:13]} 33. h6 {[%clk 0:00:14.3]} 33... Ne6
{[%clk 0:00:11.9]} 34. Qf5+ {[%clk 0:00:13.6]} 34... Kh8 {[%clk 0:00:09.5]} 35.
Qe5+ {[%clk 0:00:12.2]} 35... Kh7 {[%clk 0:00:09.4]} 36. Qf5+ {[%clk 0:00:08.6]}
36... Kh8 {[%clk 0:00:09.3]} 37. Qe5+ {[%clk 0:00:05.8]} 37... Kh7 {[%clk
0:00:09.3]} 38. Qf5+ {[%clk 0:00:03.6]} 1/2-1/2

[Event "*** Titled Tuesday Blitz"]
[Site "Chess.com"]
[Date "2020.04.14"]
[Round "3"]
[White "Egorov_Pavel"]
[Black "Keaton87"]
[Result "0-1"]
[WhiteElo "2411"]
[BlackElo "2671"]
[TimeControl "180+1"]
[EndTime "10:28:25 PDT"]
[Termination "Keaton87 won by resignation"]

1. d4 {[%clk 0:03:00.4]} 1... d5 {[%clk 0:02:58.2]} 2. c4 {[%clk 0:03:00.7]}
2... e6 {[%clk 0:02:58.1]} 3. Nc3 {[%clk 0:03:01]} 3... Nf6 {[%clk 0:02:58.1]}
4. Nf3 {[%clk 0:03:00.3]} 4... c5 {[%clk 0:02:57.4]} 5. cxd5 {[%clk 0:02:59.6]}
5... Nxd5 {[%clk 0:02:57.5]} 6. e4 {[%clk 0:02:59.5]} 6... Nxc3 {[%clk
0:02:56.9]} 7. bxc3 {[%clk 0:03:00.4]} 7... cxd4 {[%clk 0:02:57.5]} 8. cxd4
{[%clk 0:02:59.1]} 8... Bb4+ {[%clk 0:02:57.9]} 9. Bd2 {[%clk 0:02:58]} 9...
Bxd2+ {[%clk 0:02:58.4]} 10. Qxd2 {[%clk 0:02:47]} 10... O-O {[%clk 0:02:58.3]}
11. Bd3 {[%clk 0:02:38.9]} 11... b6 {[%clk 0:02:57.9]} 12. O-O {[%clk
0:02:32.6]} 12... Bb7 {[%clk 0:02:57.8]} 13. Qe3 {[%clk 0:02:17.7]} 13... Nc6
{[%clk 0:02:55.8]} 14. Rac1 {[%clk 0:02:14.2]} 14... Rc8 {[%clk 0:02:55]} 15.
Rfd1 {[%clk 0:02:14.1]} 15... Nb4 {[%clk 0:02:50.3]} 16. Bb1 {[%clk 0:02:11.4]}
16... Qe7 {[%clk 0:02:40.3]} 17. a3 {[%clk 0:02:09.4]} 17... Nc6 {[%clk
0:02:38.8]} 18. d5 {[%clk 0:02:07.8]} 18... exd5 {[%clk 0:02:35.5]} 19. exd5
{[%clk 0:02:08.7]} 19... Qxe3 {[%clk 0:02:35.5]} 20. fxe3 {[%clk 0:02:09.6]}
20... Na5 {[%clk 0:02:35]} 21. e4 {[%clk 0:02:01.7]} 21... Nb3 {[%clk
0:02:28.1]} 22. Rxc8 {[%clk 0:02:00.9]} 22... Rxc8 {[%clk 0:02:27.6]} 23. e5
{[%clk 0:01:54.1]} 23... Kf8 {[%clk 0:02:26.6]} 24. d6 {[%clk 0:01:46.9]} 24...
Rd8 {[%clk 0:02:06.5]} 25. Ng5 {[%clk 0:01:37.2]} 25... h6 {[%clk 0:01:55.4]}
26. Nxf7 {[%clk 0:01:37.3]} 26... Kxf7 {[%clk 0:01:55.5]} 27. Ba2 {[%clk
0:01:37.7]} 27... Ke6 {[%clk 0:01:55.6]} 28. Bxb3+ {[%clk 0:01:33.1]} 28... Kxe5
{[%clk 0:01:55.8]} 29. d7 {[%clk 0:01:30.3]} 29... Bc6 {[%clk 0:01:54.6]} 30.
Re1+ {[%clk 0:01:22.3]} 30... Kd6 {[%clk 0:01:54.3]} 31. Rd1+ {[%clk 0:01:19.5]}
31... Kc7 {[%clk 0:01:54.1]} 32. Rc1 {[%clk 0:00:56.1]} 32... Rxd7 {[%clk
0:01:53.5]} 33. Ba4 {[%clk 0:00:56]} 33... Rd6 {[%clk 0:01:53.8]} 34. Kf2 {[%clk
0:00:52.5]} 34... a6 {[%clk 0:01:53.1]} 35. Bxc6 {[%clk 0:00:50.7]} 35... Rxc6
{[%clk 0:01:52.8]} 36. Re1 {[%clk 0:00:51.1]} 36... Rc2+ {[%clk 0:01:47.4]} 37.
Kg3 {[%clk 0:00:49.9]} 37... Rc3+ {[%clk 0:01:43.6]} 38. Kg4 {[%clk 0:00:50.3]}
38... Rxa3 {[%clk 0:01:43.3]} 39. Re7+ {[%clk 0:00:50.5]} 39... Kc6 {[%clk
0:01:43.3]} 40. Rxg7 {[%clk 0:00:51.4]} 40... b5 {[%clk 0:01:42.6]} 41. Rg6+
{[%clk 0:00:51.5]} 41... Kc5 {[%clk 0:01:42.9]} 42. Rxh6 {[%clk 0:00:51]} 42...
b4 {[%clk 0:01:43.2]} 43. Rh8 {[%clk 0:00:50.6]} 43... Ra5 {[%clk 0:01:39.9]}
44. Rc8+ {[%clk 0:00:31.9]} 44... Kd4 {[%clk 0:01:39.3]} 45. h4 {[%clk
0:00:30.1]} 45... b3 {[%clk 0:01:38.5]} 46. Rc1 {[%clk 0:00:25]} 46... Rb5
{[%clk 0:01:28.4]} 47. h5 {[%clk 0:00:22.2]} 47... a5 {[%clk 0:01:27.9]} 48. h6
{[%clk 0:00:20.9]} 48... a4 {[%clk 0:01:28]} 49. Ra1 {[%clk 0:00:16.2]} 49... b2
{[%clk 0:01:20.3]} 50. Rxa4+ {[%clk 0:00:15.8]} 50... Kc5 {[%clk 0:01:20.6]} 51.
h7 {[%clk 0:00:14.5]} 51... Rb8 {[%clk 0:01:15.2]} 52. Ra5+ {[%clk 0:00:12.9]}
52... Kb4 {[%clk 0:01:10]} 53. Ra7 {[%clk 0:00:05.1]} 53... b1=Q {[%clk
0:01:04.9]} 54. h8=Q {[%clk 0:00:05.4]} 54... Qe4+ {[%clk 0:01:02]} 55. Kg5
{[%clk 0:00:05.9]} 55... Rxh8 {[%clk 0:01:00.9]} 0-1

[Event "*** Titled Tuesday Blitz"]
[Site "Chess.com"]
[Date "2020.04.14"]
[Round "3"]
[White "Dare-Dare"]
[Black "djogrodek1"]
[Result "0-1"]
[WhiteElo "2186"]
[BlackElo "2520"]
[TimeControl "180+1"]
[EndTime "10:28:25 PDT"]
[Termination "djogrodek1 won by checkmate"]

1. Nf3 {[%clk 0:03:00.9]} 1... d5 {[%clk 0:02:58.5]} 2. c4 {[%clk 0:03:01.5]}
2... c6 {[%clk 0:02:57]} 3. e3 {[%clk 0:03:01.8]} 3... Nf6 {[%clk 0:02:54.9]} 4.
Nc3 {[%clk 0:03:02.5]} 4... e6 {[%clk 0:02:54.8]} 5. b3 {[%clk 0:03:02.3]} 5...
Bd6 {[%clk 0:02:54.9]} 6. Bb2 {[%clk 0:03:02.9]} 6... O-O {[%clk 0:02:55.6]} 7.
Qc2 {[%clk 0:03:03.4]} 7... e5 {[%clk 0:02:55.9]} 8. cxd5 {[%clk 0:03:03.2]}
8... cxd5 {[%clk 0:02:56.8]} 9. Nb5 {[%clk 0:03:03.3]} 9... Nc6 {[%clk
0:02:57.4]} 10. Nxd6 {[%clk 0:02:56.5]} 10... Qxd6 {[%clk 0:02:58.3]} 11. Bb5
{[%clk 0:02:54.7]} 11... e4 {[%clk 0:02:27.3]} 12. Nd4 {[%clk 0:02:51.1]} 12...
Bd7 {[%clk 0:02:19.2]} 13. Bxc6 {[%clk 0:02:42.1]} 13... Bxc6 {[%clk 0:02:00.7]}
14. Nxc6 {[%clk 0:01:49.5]} 14... Rac8 {[%clk 0:01:45.9]} 15. Bc3 {[%clk
0:01:48.6]} 15... Rxc6 {[%clk 0:01:42.7]} 16. Qb2 {[%clk 0:01:48.8]} 16... Rfc8
{[%clk 0:01:31.5]} 17. h3 {[%clk 0:01:46.8]} 17... Qf8 {[%clk 0:01:17.4]} 18.
O-O {[%clk 0:01:44.9]} 18... Nd7 {[%clk 0:01:17.4]} 19. Bd4 {[%clk 0:01:29.3]}
19... Rc2 {[%clk 0:01:14.3]} 20. Qb1 {[%clk 0:01:27.2]} 20... Rxd2 {[%clk
0:00:39.5]} 21. Rc1 {[%clk 0:01:25.9]} 21... a6 {[%clk 0:00:27.7]} 22. Rc3
{[%clk 0:01:23.5]} 22... Rxc3 {[%clk 0:00:20.5]} 23. Bxc3 {[%clk 0:01:24.4]}
23... Rd3 {[%clk 0:00:20.8]} 24. Qb2 {[%clk 0:01:24.4]} 24... f6 {[%clk
0:00:20.8]} 25. Bd4 {[%clk 0:01:24.1]} 25... Nb8 {[%clk 0:00:17.5]} 26. Rc1
{[%clk 0:01:20.5]} 26... Nc6 {[%clk 0:00:17.9]} 27. Bc5 {[%clk 0:01:20.7]} 27...
Qe8 {[%clk 0:00:17]} 28. Qc2 {[%clk 0:01:04.6]} 28... h6 {[%clk 0:00:14.5]} 29.
b4 {[%clk 0:01:01.6]} 29... Qe5 {[%clk 0:00:11.4]} 30. a4 {[%clk 0:01:01.3]}
30... Kh7 {[%clk 0:00:10.1]} 31. b5 {[%clk 0:01:01.1]} 31... axb5 {[%clk
0:00:10]} 32. axb5 {[%clk 0:01:02]} 32... Na5 {[%clk 0:00:10]} 33. Bd4 {[%clk
0:01:02.3]} 33... Qf5 {[%clk 0:00:08.3]} 34. Qc7 {[%clk 0:00:29.6]} 34... Nb3
{[%clk 0:00:07]} 35. Rf1 {[%clk 0:00:18]} 35... Nxd4 {[%clk 0:00:03.5]} 36. exd4
{[%clk 0:00:18.9]} 36... Rd2 {[%clk 0:00:04]} 37. Qxb7 {[%clk 0:00:18.9]} 37...
Qg5 {[%clk 0:00:04]} 38. Qd7 {[%clk 0:00:12.8]} 38... e3 {[%clk 0:00:04.1]} 39.
fxe3 {[%clk 0:00:12.3]} 39... Qxg2# {[%clk 0:00:03.6]} 0-1

[Event "*** Titled Tuesday Blitz"]
[Site "Chess.com"]
[Date "2020.04.14"]
[Round "3"]
[White "Caclox"]
[Black "sergiochess83"]
[Result "0-1"]
[WhiteElo "2483"]
[BlackElo "2816"]
[TimeControl "180+1"]
[EndTime "10:28:26 PDT"]
[Termination "sergiochess83 won by resignation"]

1. e4 {[%clk 0:03:00.9]} 1... c6 {[%clk 0:02:59.6]} 2. d4 {[%clk 0:02:53.9]}
2... d5 {[%clk 0:03:00.5]} 3. Nc3 {[%clk 0:02:51.5]} 3... dxe4 {[%clk 0:03:00]}
4. Nxe4 {[%clk 0:02:52.4]} 4... Bf5 {[%clk 0:03:00.4]} 5. Ng3 {[%clk 0:02:51.9]}
5... Bg6 {[%clk 0:03:00.8]} 6. h4 {[%clk 0:02:52.4]} 6... h6 {[%clk 0:03:01.4]}
7. Bc4 {[%clk 0:02:52.5]} 7... e6 {[%clk 0:03:01.5]} 8. N1e2 {[%clk 0:02:52.9]}
8... Nf6 {[%clk 0:03:01.4]} 9. Nf4 {[%clk 0:02:53.2]} 9... Bh7 {[%clk
0:03:01.9]} 10. c3 {[%clk 0:02:53.6]} 10... Bd6 {[%clk 0:03:01.8]} 11. Qf3
{[%clk 0:02:53.2]} 11... O-O {[%clk 0:03:01.2]} 12. Be3 {[%clk 0:02:53.1]} 12...
Nbd7 {[%clk 0:02:59.8]} 13. Nfh5 {[%clk 0:02:43.2]} 13... a5 {[%clk 0:02:34]}
14. a3 {[%clk 0:02:22.4]} 14... b5 {[%clk 0:02:16.2]} 15. Ba2 {[%clk 0:02:20.3]}
15... b4 {[%clk 0:01:58.2]} 16. axb4 {[%clk 0:02:17.9]} 16... axb4 {[%clk
0:01:57.9]} 17. O-O {[%clk 0:02:17.8]} 17... Bxg3 {[%clk 0:01:39.7]} 18. Nxg3
{[%clk 0:02:13.1]} 18... bxc3 {[%clk 0:01:33.3]} 19. bxc3 {[%clk 0:02:10.6]}
19... Qa5 {[%clk 0:01:24.2]} 20. Bf4 {[%clk 0:01:49]} 20... Nd5 {[%clk
0:01:09.8]} 21. Bxd5 {[%clk 0:01:32.8]} 21... Qxd5 {[%clk 0:01:04.2]} 22. Qe2
{[%clk 0:01:14.3]} 22... Qb3 {[%clk 0:00:47.9]} 23. Qd2 {[%clk 0:00:52.4]} 23...
Nf6 {[%clk 0:00:46.7]} 24. Bxh6 {[%clk 0:00:46.6]} 24... Rxa1 {[%clk 0:00:31.4]}
25. Rxa1 {[%clk 0:00:43.7]} 25... gxh6 {[%clk 0:00:31.6]} 26. Qxh6 {[%clk
0:00:44.1]} 26... Qxc3 {[%clk 0:00:31.6]} 27. Rd1 {[%clk 0:00:38]} 27... Qc2
{[%clk 0:00:31.3]} 28. Rd2 {[%clk 0:00:32.8]} 28... Qg6 {[%clk 0:00:30.9]} 29.
Qf4 {[%clk 0:00:32]} 29... Nd5 {[%clk 0:00:30.3]} 30. Qd6 {[%clk 0:00:28]} 30...
Qh6 {[%clk 0:00:28.4]} 31. Re2 {[%clk 0:00:25.8]} 31... Qxh4 {[%clk 0:00:27.3]}
32. Re5 {[%clk 0:00:23.8]} 32... Ra8 {[%clk 0:00:24.1]} 33. Nf1 {[%clk
0:00:20.6]} 33... Bg6 {[%clk 0:00:20]} 34. Qxc6 {[%clk 0:00:14.7]} 34... Ra1
{[%clk 0:00:19.4]} 35. Re2 {[%clk 0:00:05.4]} 35... Qxd4 {[%clk 0:00:18.2]} 36.
Qc8+ {[%clk 0:00:03.6]} 36... Kg7 {[%clk 0:00:18.1]} 37. Qb8 {[%clk 0:00:03.9]}
37... Rxf1+ {[%clk 0:00:17.2]} 38. Kxf1 {[%clk 0:00:03.2]} 38... Qd1+ {[%clk
0:00:17.4]} 39. Re1 {[%clk 0:00:03.6]} 39... Bd3+ {[%clk 0:00:17.7]} 0-1